[Event "Live Chess"]
[Site "Chess.com"]
[Date "2021.05.21"]
[Round "2"]
[White "Ivanzong"]
[Black "KingSmasher35"]
[Result "0-1"]
[CurrentPosition "8/8/7p/8/6p1/8/4K1k1/5q2 w - -"]
[Timezone "UTC"]
[ECO "D02"]
[ECOUrl "https://www.chess.com/openings/Queens-Pawn-Opening-Symmetrical-Variation"]
[UTCDate "2021.05.21"]
[UTCTime "01:31:13"]
[WhiteElo "1081"]
[BlackElo "1789"]
[TimeControl "3600+5"]
[Termination "KingSmasher35 won by resignation"]
[StartTime "01:31:13"]
[EndDate "2021.05.21"]
[EndTime "03:35:15"]
[Link "https://www.chess.com/game/live/15299572797"]

1. d4 {[%clk 0:59:58.3]} 1... Nf6 {[%clk 1:00:00.3]} 2. Nf3 {[%clk 1:00:00.2]} 2... d5 {[%clk 0:59:47.1]} 3. e3 {[%clk 0:59:57.6]} 3... Bf5 {[%clk 0:59:41.2]} 4. Be2 {[%clk 0:59:56.8]} 4... e6 {[%clk 0:58:51.8]} 5. b3 {[%clk 0:59:56.2]} 5... h6 {[%clk 0:58:34.3]} 6. Bb2 {[%clk 0:59:56.5]} 6... Bd6 {[%clk 0:57:25.6]} 7. Nbd2 {[%clk 0:59:51.1]} 7... O-O {[%clk 0:57:18.7]} 8. O-O {[%clk 0:59:49]} 8... c5 {[%clk 0:56:13.2]} 9. c4 {[%clk 0:59:32.1]} 9... Nc6 {[%clk 0:55:07.2]} 10. Rc1 {[%clk 0:59:12]} 10... Qe7 {[%clk 0:52:46.9]} 11. Ne5 {[%clk 0:58:51.5]} 11... Rfd8 {[%clk 0:47:23]} 12. Ndf3 {[%clk 0:57:32.6]} 12... a5 {[%clk 0:44:41.1]} 13. Bd3 {[%clk 0:54:37.4]} 13... Bxd3 {[%clk 0:43:59.6]} 14. Qxd3 {[%clk 0:54:35.5]} 14... a4 {[%clk 0:42:43.5]} 15. Rfd1 {[%clk 0:51:30.4]} 15... Nb4 {[%clk 0:42:05.2]} 16. Qe2 {[%clk 0:51:03.1]} 16... Nxa2 {[%clk 0:41:34.7]} 17. Ra1 {[%clk 0:49:29.4]} 17... axb3 {[%clk 0:41:24.5]} 18. Qd3 {[%clk 0:48:32.5]} 18... cxd4 {[%clk 0:35:19.2]} 19. exd4 {[%clk 0:48:04.8]} 19... dxc4 {[%clk 0:34:58]} 20. Qxc4 {[%clk 0:47:54.9]} 20... Nb4 {[%clk 0:32:51.2]} 21. Qxb3 {[%clk 0:47:43.8]} 21... Nfd5 {[%clk 0:32:14.1]} 22. Qc4 {[%clk 0:41:19.1]} 22... Rac8 {[%clk 0:31:01.3]} 23. Qf1 {[%clk 0:41:02.8]} 23... Rc2 {[%clk 0:30:35.2]} 24. Ba3 {[%clk 0:33:39.6]} 24... Rdc8 {[%clk 0:30:00.9]} 25. Rac1 {[%clk 0:29:55.6]} 25... Rxc1 {[%clk 0:27:11.8]} 26. Rxc1 {[%clk 0:29:57.6]} 26... Rxc1 {[%clk 0:24:58.1]} 27. Qxc1 {[%clk 0:28:32.4]} 27... Qc7 {[%clk 0:24:40.5]} 28. Qxc7 {[%clk 0:23:43.8]} 28... Bxc7 {[%clk 0:24:38.7]} 29. Kf1 {[%clk 0:21:57.8]} 29... Nc2 {[%clk 0:24:17.7]} 30. Bb2 {[%clk 0:21:12.9]} 30... f6 {[%clk 0:19:57.8]} 31. Nd3 {[%clk 0:20:11.3]} 31... Kf7 {[%clk 0:19:15]} 32. Ke2 {[%clk 0:19:38.3]} 32... g5 {[%clk 0:18:01.9]} 33. h3 {[%clk 0:16:56.8]} 33... b6 {[%clk 0:16:19.9]} 34. Kd2 {[%clk 0:14:00.1]} 34... Ncb4 {[%clk 0:16:08]} 35. Nxb4 {[%clk 0:13:31.6]} 35... Nxb4 {[%clk 0:15:53]} 36. Kc3 {[%clk 0:11:16.2]} 36... Nd5+ {[%clk 0:15:40.2]} 37. Kc4 {[%clk 0:11:01]} 37... Nf4 {[%clk 0:15:06.2]} 38. Ne1 {[%clk 0:10:35.8]} 38... Ke7 {[%clk 0:11:49.7]} 39. Bc1 {[%clk 0:06:47.1]} 39... Kd7 {[%clk 0:11:24.1]} 40. Kb5 {[%clk 0:05:41.6]} 40... e5 {[%clk 0:09:26.6]} 41. Bxf4 {[%clk 0:04:21.4]} 41... exf4 {[%clk 0:08:48]} 42. Nd3 {[%clk 0:04:19.7]} 42... f5 {[%clk 0:08:08.2]} 43. Nb4 {[%clk 0:03:34.8]} 43... g4 {[%clk 0:06:54.1]} 44. hxg4 {[%clk 0:02:31.9]} 44... fxg4 {[%clk 0:06:54.7]} 45. Nd5 {[%clk 0:02:34.8]} 45... f3 {[%clk 0:05:37.9]} 46. g3 {[%clk 0:02:26.8]} 46... Bd8 {[%clk 0:04:38.3]} 47. Nxb6+ {[%clk 0:02:09.9]} 47... Bxb6 {[%clk 0:04:29.4]} 48. Kxb6 {[%clk 0:02:11.8]} 48... Kd6 {[%clk 0:04:19]} 49. Kb5 {[%clk 0:01:27.4]} 49... Kd5 {[%clk 0:04:16.5]} 50. Kb6 {[%clk 0:01:31.5]} 50... Kxd4 {[%clk 0:04:10.8]} 51. Kc6 {[%clk 0:01:34.9]} 51... Kd3 {[%clk 0:04:06.7]} 52. Kd5 {[%clk 0:01:38.5]} 52... Ke2 {[%clk 0:04:10.2]} 53. Ke4 {[%clk 0:01:42.1]} 53... Kxf2 {[%clk 0:04:13.8]} 54. Kd3 {[%clk 0:01:28.3]} 54... Kxg3 {[%clk 0:04:15]} 55. Kd2 {[%clk 0:01:31.8]} 55... Kg2 {[%clk 0:04:14.3]} 56. Ke1 {[%clk 0:01:34.8]} 56... f2+ {[%clk 0:04:17.8]} 57. Ke2 {[%clk 0:01:39]} 57... f1=Q+ {[%clk 0:04:20.9]} 0-1

[Event "Live Chess"]
[Site "Chess.com"]
[Date "2021.05.21"]
[Round "2"]
[White "Bruce_Hedman"]
[Black "Talenuf"]
[Result "0-1"]
[CurrentPosition "6k1/2R2ppp/p3p3/4N3/5P2/5b2/6rr/B4RK1 w - -"]
[Timezone "UTC"]
[ECO "E00"]
[ECOUrl "https://www.chess.com/openings/Indian-Game-East-Indian-Benoni-Defense"]
[UTCDate "2021.05.21"]
[UTCTime "01:31:21"]
[WhiteElo "1043"]
[BlackElo "1900"]
[TimeControl "3600+5"]
[Termination "Talenuf won by checkmate"]
[StartTime "01:31:21"]
[EndDate "2021.05.21"]
[EndTime "02:57:55"]
[Link "https://www.chess.com/game/live/15299573063"]

1. d4 {[%clk 1:00:00.3]} 1... Nf6 {[%clk 1:00:03]} 2. c4 {[%clk 1:00:01]} 2... e6 {[%clk 1:00:07.1]} 3. Nc3 {[%clk 1:00:00.8]} 3... c5 {[%clk 1:00:09.4]} 4. e3 {[%clk 0:59:44.8]} 4... d5 {[%clk 1:00:08.2]} 5. cxd5 {[%clk 0:59:26.3]} 5... Nxd5 {[%clk 1:00:07.4]} 6. Nf3 {[%clk 0:58:44]} 6... Nc6 {[%clk 0:58:43.8]} 7. Bb5 {[%clk 0:57:16.5]} 7... a6 {[%clk 0:54:17.3]} 8. Bxc6+ {[%clk 0:57:01.3]} 8... bxc6 {[%clk 0:54:19.3]} 9. O-O {[%clk 0:56:57.9]} 9... Qc7 {[%clk 0:51:57.4]} 10. Ne5 {[%clk 0:53:06.4]} 10... Bd6 {[%clk 0:50:15.2]} 11. f4 {[%clk 0:50:09.8]} 11... O-O {[%clk 0:47:06.8]} 12. Ne4 {[%clk 0:47:46]} 12... cxd4 {[%clk 0:46:27.9]} 13. Nxd6 {[%clk 0:46:01.7]} 13... Qxd6 {[%clk 0:46:23]} 14. Qxd4 {[%clk 0:43:42.7]} 14... c5 {[%clk 0:41:58.7]} 15. Qd2 {[%clk 0:43:13]} 15... Qc7 {[%clk 0:40:10.6]} 16. b3 {[%clk 0:40:57.6]} 16... Bb7 {[%clk 0:38:38.6]} 17. Bb2 {[%clk 0:39:08.4]} 17... Rad8 {[%clk 0:37:14.4]} 18. e4 {[%clk 0:35:32.6]} 18... Nf6 {[%clk 0:36:03.4]} 19. Qe3 {[%clk 0:29:49.3]} 19... Nxe4 {[%clk 0:33:43.9]} 20. Rac1 {[%clk 0:27:54.8]} 20... Rd2 {[%clk 0:32:39.9]} 21. Ba1 {[%clk 0:23:31.4]} 21... Rfd8 {[%clk 0:32:15.7]} 22. b4 {[%clk 0:21:44.5]} 22... Rxa2 {[%clk 0:30:23.5]} 23. bxc5 {[%clk 0:20:49.1]} 23... Rdd2 {[%clk 0:29:11.2]} 24. Qf3 {[%clk 0:14:49.5]} 24... Nxc5 {[%clk 0:27:32.9]} 25. Rxc5 {[%clk 0:12:12.4]} 25... Bxf3 {[%clk 0:25:58.9]} 26. Rxc7 {[%clk 0:12:11.7]} 26... Rxg2+ {[%clk 0:26:00.9]} 27. Kh1 {[%clk 0:12:09.5]} 27... Rxh2+ {[%clk 0:26:04.7]} 28. Kg1 {[%clk 0:12:12.4]} 28... Rag2# {[%clk 0:26:07.7]} 0-1

[Event "Live Chess"]
[Site "Chess.com"]
[Date "2021.05.21"]
[Round "2"]
[White "mu3tang"]
[Black "NXBex"]
[Result "0-1"]
[CurrentPosition "8/1k6/p7/Pp3R2/2pP2p1/2P3Pp/5PbK/7r w - -"]
[Timezone "UTC"]
[ECO "C18"]
[ECOUrl "https://www.chess.com/openings/French-Defense-Winawer-Advance-Variation...5.a3-Bxc3-6.bxc3-Qa5"]
[UTCDate "2021.05.21"]
[UTCTime "01:31:20"]
[WhiteElo "1765"]
[BlackElo "1416"]
[TimeControl "3600+5"]
[Termination "NXBex won by checkmate"]
[StartTime "01:31:20"]
[EndDate "2021.05.21"]
[EndTime "03:06:55"]
[Link "https://www.chess.com/game/live/15299573325"]

1. e4 {[%clk 1:00:04]} 1... e6 {[%clk 0:59:58.3]} 2. d4 {[%clk 1:00:04.9]} 2... d5 {[%clk 1:00:01.2]} 3. Nc3 {[%clk 1:00:00]} 3... Bb4 {[%clk 1:00:03]} 4. e5 {[%clk 0:59:56.5]} 4... c5 {[%clk 1:00:03.2]} 5. a3 {[%clk 0:59:56.5]} 5... Bxc3+ {[%clk 1:00:01.4]} 6. bxc3 {[%clk 1:00:01.4]} 6... Qa5 {[%clk 0:59:58.7]} 7. Bd2 {[%clk 0:59:34.6]} 7... Qa4 {[%clk 0:59:54.5]} 8. Nf3 {[%clk 0:59:35.8]} 8... Nc6 {[%clk 0:58:52.9]} 9. Be3 {[%clk 0:57:51]} 9... c4 {[%clk 0:56:06.2]} 10. Be2 {[%clk 0:55:32.1]} 10... h6 {[%clk 0:55:48.4]} 11. O-O {[%clk 0:55:19.5]} 11... Nge7 {[%clk 0:55:49.1]} 12. h3 {[%clk 0:52:41.6]} 12... Bd7 {[%clk 0:55:42.8]} 13. Qd2 {[%clk 0:52:25.2]} 13... O-O-O {[%clk 0:54:58.9]} 14. Rfb1 {[%clk 0:51:41.3]} 14... Rdg8 {[%clk 0:49:33.8]} 15. h4 {[%clk 0:50:29]} 15... Rf8 {[%clk 0:44:58.6]} 16. Ra2 {[%clk 0:46:49.8]} 16... b6 {[%clk 0:44:06.6]} 17. Raa1 {[%clk 0:45:07.2]} 17... Be8 {[%clk 0:37:17]} 18. g3 {[%clk 0:42:27.7]} 18... Nf5 {[%clk 0:34:37.4]} 19. Bf4 {[%clk 0:39:07.7]} 19... Nfe7 {[%clk 0:32:49]} 20. Nh2 {[%clk 0:38:36]} 20... Ng6 {[%clk 0:30:16.8]} 21. Nf1 {[%clk 0:38:12.3]} 21... Nxf4 {[%clk 0:30:16.1]} 22. Qxf4 {[%clk 0:38:14.6]} 22... Qxc2 {[%clk 0:29:54.2]} 23. Qe3 {[%clk 0:38:03.4]} 23... Rfg8 {[%clk 0:27:01.1]} 24. Bd1 {[%clk 0:37:39.6]} 24... Qh7 {[%clk 0:26:25.7]} 25. Ba4 {[%clk 0:36:51.2]} 25... g5 {[%clk 0:25:38.5]} 26. h5 {[%clk 0:35:56.8]} 26... g4 {[%clk 0:23:11.3]} 27. Bxc6 {[%clk 0:35:43.2]} 27... Bxc6 {[%clk 0:23:11.7]} 28. a4 {[%clk 0:35:47.4]} 28... Qf5 {[%clk 0:21:30.8]} 29. a5 {[%clk 0:35:44.8]} 29... b5 {[%clk 0:21:30.8]} 30. Rb4 {[%clk 0:34:42.4]} 30... a6 {[%clk 0:21:19.1]} 31. Re1 {[%clk 0:33:01.2]} 31... Qxh5 {[%clk 0:20:39]} 32. Qf4 {[%clk 0:32:51.6]} 32... Qg6 {[%clk 0:20:24.9]} 33. Nh2 {[%clk 0:32:17.7]} 33... h5 {[%clk 0:19:52]} 34. Rf1 {[%clk 0:31:08.9]} 34... h4 {[%clk 0:18:17.4]} 35. Rb2 {[%clk 0:29:44]} 35... h3 {[%clk 0:15:48.6]} 36. Re2 {[%clk 0:29:11.3]} 36... Rh7 {[%clk 0:14:42.5]} 37. Re3 {[%clk 0:28:05.3]} 37... Qg5 {[%clk 0:14:36.7]} 38. Qxg5 {[%clk 0:27:37.5]} 38... Rxg5 {[%clk 0:14:38.5]} 39. Rfe1 {[%clk 0:27:13.8]} 39... Bd7 {[%clk 0:14:01.7]} 40. R1e2 {[%clk 0:26:47.4]} 40... Rhg7 {[%clk 0:13:47.7]} 41. Re1 {[%clk 0:26:27.5]} 41... Rf5 {[%clk 0:13:37.6]} 42. R1e2 {[%clk 0:26:10.4]} 42... f6 {[%clk 0:12:40.2]} 43. exf6 {[%clk 0:26:10.9]} 43... Rxf6 {[%clk 0:12:42.3]} 44. Re5 {[%clk 0:26:14.2]} 44... Rf5 {[%clk 0:12:09.6]} 45. Rxf5 {[%clk 0:25:06.6]} 45... exf5 {[%clk 0:12:08.6]} 46. Re5 {[%clk 0:25:08.5]} 46... Kb7 {[%clk 0:10:10.3]} 47. Rxd5 {[%clk 0:24:53.6]} 47... Re7 {[%clk 0:09:48.6]} 48. Kf1 {[%clk 0:24:53.5]} 48... Bc6 {[%clk 0:09:32.4]} 49. Rxf5 {[%clk 0:24:39.8]} 49... Bg2+ {[%clk 0:09:23]} 50. Kg1 {[%clk 0:24:11.9]} 50... Re1+ {[%clk 0:09:13.1]} 51. Nf1 {[%clk 0:24:10.8]} 51... Rxf1+ {[%clk 0:09:15.2]} 52. Kh2 {[%clk 0:24:13.3]} 52... Rh1# {[%clk 0:09:18.3]} 0-1

[Event "Live Chess"]
[Site "Chess.com"]
[Date "2021.05.21"]
[Round "2"]
[White "hip_hop_99"]
[Black "swimgrass"]
[Result "1-0"]
[CurrentPosition "8/3P4/1p6/7k/P3K2P/1P6/8/8 b - -"]
[Timezone "UTC"]
[ECO "E00"]
[ECOUrl "https://www.chess.com/openings/Queens-Gambit-Declined-Catalan-Opening"]
[UTCDate "2021.05.21"]
[UTCTime "01:31:25"]
[WhiteElo "1659"]
[BlackElo "1363"]
[TimeControl "3600+5"]
[Termination "hip_hop_99 won by resignation"]
[StartTime "01:31:25"]
[EndDate "2021.05.21"]
[EndTime "02:35:27"]
[Link "https://www.chess.com/game/live/15299573607"]

1. d4 {[%clk 1:00:03.8]} 1... d5 {[%clk 0:59:26.8]} 2. c4 {[%clk 1:00:06.3]} 2... e6 {[%clk 0:59:15.3]} 3. Nf3 {[%clk 1:00:08.2]} 3... Nf6 {[%clk 0:59:15.6]} 4. g3 {[%clk 1:00:06.3]} 4... Be7 {[%clk 0:58:58.1]} 5. Bg2 {[%clk 1:00:08.8]} 5... c6 {[%clk 0:58:55.4]} 6. O-O {[%clk 1:00:06.2]} 6... O-O {[%clk 0:58:53.4]} 7. Nc3 {[%clk 1:00:04.7]} 7... Nbd7 {[%clk 0:58:27.8]} 8. b3 {[%clk 0:59:49.6]} 8... b6 {[%clk 0:57:57.9]} 9. cxd5 {[%clk 0:59:49.5]} 9... cxd5 {[%clk 0:56:47.9]} 10. Bf4 {[%clk 0:59:11.6]} 10... Bb7 {[%clk 0:56:42.5]} 11. Nb5 {[%clk 0:58:54.2]} 11... Rc8 {[%clk 0:55:01.8]} 12. Nxa7 {[%clk 0:58:41.5]} 12... Ra8 {[%clk 0:54:37.9]} 13. Nb5 {[%clk 0:58:41.4]} 13... Ne4 {[%clk 0:54:07.4]} 14. Bc7 {[%clk 0:57:56.5]} 14... Qe8 {[%clk 0:53:45.8]} 15. a4 {[%clk 0:57:45.9]} 15... Bc6 {[%clk 0:53:30.1]} 16. Qd3 {[%clk 0:57:14.6]} 16... Bxb5 {[%clk 0:53:18.4]} 17. Qxb5 {[%clk 0:57:15.5]} 17... Bd8 {[%clk 0:52:49.5]} 18. Rac1 {[%clk 0:56:54.2]} 18... Bxc7 {[%clk 0:51:38.1]} 19. Rxc7 {[%clk 0:56:54.9]} 19... Nef6 {[%clk 0:51:26.9]} 20. Rfc1 {[%clk 0:56:45.1]} 20... Rb8 {[%clk 0:46:30.6]} 21. Nd2 {[%clk 0:56:11.9]} 21... Qe7 {[%clk 0:45:17.1]} 22. e4 {[%clk 0:55:56.9]} 22... Rfd8 {[%clk 0:41:49.1]} 23. exd5 {[%clk 0:54:20.2]} 23... exd5 {[%clk 0:41:27.6]} 24. Bxd5 {[%clk 0:54:19.5]} 24... Nxd5 {[%clk 0:41:01.1]} 25. Qxd5 {[%clk 0:54:21.6]} 25... Nf6 {[%clk 0:40:56.1]} 26. Rxe7 {[%clk 0:54:05.5]} 26... Rxd5 {[%clk 0:39:18.9]} 27. Nf3 {[%clk 0:53:49.6]} 27... h6 {[%clk 0:37:44.9]} 28. Rcc7 {[%clk 0:53:37]} 28... Rf8 {[%clk 0:36:00.1]} 29. Rb7 {[%clk 0:53:27.8]} 29... Rd6 {[%clk 0:34:16.2]} 30. Kf1 {[%clk 0:52:48.2]} 30... Nd5 {[%clk 0:33:41.1]} 31. Red7 {[%clk 0:52:14]} 31... Rxd7 {[%clk 0:33:00.5]} 32. Rxd7 {[%clk 0:52:14.6]} 32... Nc3 {[%clk 0:29:42.4]} 33. Rb7 {[%clk 0:51:44.4]} 33... Nd5 {[%clk 0:29:18.6]} 34. Ne5 {[%clk 0:51:39.2]} 34... Kh8 {[%clk 0:28:03.6]} 35. Nxf7+ {[%clk 0:51:18]} 35... Kg8 {[%clk 0:27:11.2]} 36. Ne5 {[%clk 0:51:16.8]} 36... Ne3+ {[%clk 0:27:13.8]} 37. Ke2 {[%clk 0:51:03.5]} 37... Nc2 {[%clk 0:26:13.8]} 38. Nc6 {[%clk 0:49:41.8]} 38... Re8+ {[%clk 0:25:32.5]} 39. Kd2 {[%clk 0:49:19.3]} 39... Ne1 {[%clk 0:25:28.7]} 40. Ne7+ {[%clk 0:49:03.1]} 40... Kf8 {[%clk 0:22:47.2]} 41. Kxe1 {[%clk 0:48:53.5]} 41... Rxe7+ {[%clk 0:20:28.3]} 42. Rxe7 {[%clk 0:47:51.4]} 42... Kxe7 {[%clk 0:20:33.2]} 43. Kd2 {[%clk 0:47:48.5]} 43... Kd6 {[%clk 0:20:28.3]} 44. f4 {[%clk 0:47:48.7]} 44... Kd5 {[%clk 0:20:29.9]} 45. Kd3 {[%clk 0:47:52.9]} 45... g5 {[%clk 0:20:18.9]} 46. fxg5 {[%clk 0:47:44.3]} 46... hxg5 {[%clk 0:19:25.8]} 47. h4 {[%clk 0:47:45.5]} 47... gxh4 {[%clk 0:18:14.5]} 48. gxh4 {[%clk 0:47:48.2]} 48... Ke6 {[%clk 0:17:33.3]} 49. Ke4 {[%clk 0:47:47.3]} 49... Kf6 {[%clk 0:17:10.4]} 50. d5 {[%clk 0:47:47.6]} 50... Kg6 {[%clk 0:17:12.9]} 51. d6 {[%clk 0:47:50]} 51... Kh5 {[%clk 0:17:14.5]} 52. d7 {[%clk 0:47:52.6]} 1-0

[Event "Live Chess"]
[Site "Chess.com"]
[Date "2021.05.21"]
[Round "2"]
[White "Charris62606"]
[Black "jacobchess857"]
[Result "0-1"]
[CurrentPosition "7k/1P4p1/5p1p/8/4p1P1/Q1p5/3rK3/6q1 w - -"]
[Timezone "UTC"]
[ECO "C50"]
[ECOUrl "https://www.chess.com/openings/Giuoco-Piano-Game-Giuoco-Pianissimo-Italian-Four-Knights-Variation"]
[UTCDate "2021.05.21"]
[UTCTime "01:31:22"]
[WhiteElo "1017"]
[BlackElo "1612"]
[TimeControl "3600+5"]
[Termination "jacobchess857 won by checkmate"]
[StartTime "01:31:22"]
[EndDate "2021.05.21"]
[EndTime "02:41:32"]
[Link "https://www.chess.com/game/live/15299573859"]

1. e4 {[%clk 0:59:58.2]} 1... e5 {[%clk 0:59:45.1]} 2. Nf3 {[%clk 0:59:59.9]} 2... Nc6 {[%clk 0:59:47.9]} 3. Bc4 {[%clk 1:00:02]} 3... Bc5 {[%clk 0:59:49.3]} 4. Nc3 {[%clk 1:00:04.9]} 4... Nf6 {[%clk 0:59:49.9]} 5. d3 {[%clk 1:00:08]} 5... h6 {[%clk 0:59:43.6]} 6. O-O {[%clk 1:00:06.1]} 6... O-O {[%clk 0:59:41.9]} 7. Nd5 {[%clk 1:00:06.6]} 7... d6 {[%clk 0:59:18.1]} 8. c3 {[%clk 0:59:59.9]} 8... Bg4 {[%clk 0:58:43.1]} 9. h3 {[%clk 0:59:58.6]} 9... Bh5 {[%clk 0:57:24.6]} 10. a4 {[%clk 0:59:35.7]} 10... a6 {[%clk 0:56:25.5]} 11. b4 {[%clk 0:59:15.7]} 11... Ba7 {[%clk 0:55:22.2]} 12. b5 {[%clk 0:58:48]} 12... axb5 {[%clk 0:52:32.7]} 13. axb5 {[%clk 0:58:38]} 13... Nxd5 {[%clk 0:49:14.5]} 14. bxc6 {[%clk 0:57:07.2]} 14... Ne7 {[%clk 0:46:19.3]} 15. cxb7 {[%clk 0:56:14.4]} 15... Bxf2+ {[%clk 0:45:40.7]} 16. Rxf2 {[%clk 0:56:16.7]} 16... Rxa1 {[%clk 0:45:33.5]} 17. Rb2 {[%clk 0:55:58.6]} 17... Qb8 {[%clk 0:43:21.9]} 18. g4 {[%clk 0:55:48.8]} 18... Bg6 {[%clk 0:43:07.3]} 19. Kf2 {[%clk 0:55:24.6]} 19... c6 {[%clk 0:38:05.4]} 20. Qc2 {[%clk 0:55:00.7]} 20... Ra7 {[%clk 0:29:36.3]} 21. Qb1 {[%clk 0:54:37.4]} 21... Rd8 {[%clk 0:28:26.5]} 22. Be3 {[%clk 0:54:04.6]} 22... c5 {[%clk 0:27:48.2]} 23. d4 {[%clk 0:53:50.2]} 23... exd4 {[%clk 0:26:37.9]} 24. cxd4 {[%clk 0:53:45.5]} 24... d5 {[%clk 0:26:01.4]} 25. Bd3 {[%clk 0:53:19.9]} 25... c4 {[%clk 0:25:08.6]} 26. Bc2 {[%clk 0:52:56.8]} 26... dxe4 {[%clk 0:22:58.1]} 27. Ne5 {[%clk 0:52:45.9]} 27... c3 {[%clk 0:17:34.9]} 28. Rb5 {[%clk 0:51:44]} 28... f6 {[%clk 0:13:13.5]} 29. Qb3+ {[%clk 0:51:32.7]} 29... Kh8 {[%clk 0:12:20.9]} 30. Nf7+ {[%clk 0:51:04.9]} 30... Bxf7 {[%clk 0:12:19.4]} 31. Qxf7 {[%clk 0:51:05.5]} 31... Qh2+ {[%clk 0:12:19.5]} 32. Kf1 {[%clk 0:50:39.4]} 32... Ra1+ {[%clk 0:11:23.6]} 33. Rb1 {[%clk 0:50:39.4]} 33... Qxh3+ {[%clk 0:11:12.4]} 34. Ke2 {[%clk 0:50:35.6]} 34... Qf3+ {[%clk 0:10:40.6]} 35. Ke1 {[%clk 0:50:26]} 35... Qxe3+ {[%clk 0:10:37.3]} 36. Kf1 {[%clk 0:50:29.7]} 36... Qf3+ {[%clk 0:09:33.3]} 37. Ke1 {[%clk 0:50:31.3]} 37... Rxb1+ {[%clk 0:09:09.7]} 38. Bxb1 {[%clk 0:50:32.6]} 38... Qh1+ {[%clk 0:09:03.8]} 39. Ke2 {[%clk 0:50:30.6]} 39... Qxb1 {[%clk 0:08:31.5]} 40. Qxe7 {[%clk 0:50:27.9]} 40... Qd3+ {[%clk 0:08:09.3]} 41. Ke1 {[%clk 0:50:27.2]} 41... Qxd4 {[%clk 0:07:40.7]} 42. Qa3 {[%clk 0:49:53.8]} 42... Qg1+ {[%clk 0:07:24.3]} 43. Ke2 {[%clk 0:49:54.1]} 43... Rd2# {[%clk 0:07:27.5]} 0-1

[Event "Live Chess"]
[Site "Chess.com"]
[Date "2021.05.21"]
[Round "2"]
[White "sfdeals"]
[Black "boozerrip"]
[Result "1-0"]
[CurrentPosition "2R2bk1/5p1p/p5pB/1p6/3Pq3/P5P1/1P3P1P/3R2K1 b - -"]
[Timezone "UTC"]
[ECO "A22"]
[ECOUrl "https://www.chess.com/openings/English-Opening-Two-Knights-Variation-3.Nf3"]
[UTCDate "2021.05.21"]
[UTCTime "01:31:29"]
[WhiteElo "1494"]
[BlackElo "1350"]
[TimeControl "3600+5"]
[Termination "sfdeals won by resignation"]
[StartTime "01:31:29"]
[EndDate "2021.05.21"]
[EndTime "02:45:56"]
[Link "https://www.chess.com/game/live/15299574191"]

1. c4 {[%clk 0:59:54.2]} 1... e5 {[%clk 0:59:50.3]} 2. Nc3 {[%clk 0:59:56.3]} 2... Nf6 {[%clk 0:59:39.4]} 3. Nf3 {[%clk 0:59:44.2]} 3... d6 {[%clk 0:53:32.7]} 4. g3 {[%clk 0:59:42.3]} 4... c5 {[%clk 0:52:54.2]} 5. Bg2 {[%clk 0:59:42.3]} 5... Nc6 {[%clk 0:52:41.9]} 6. d3 {[%clk 0:59:25.3]} 6... g6 {[%clk 0:51:35.1]} 7. O-O {[%clk 0:59:07.4]} 7... Bg7 {[%clk 0:51:34]} 8. e3 {[%clk 0:58:51.7]} 8... Be6 {[%clk 0:47:37.2]} 9. a3 {[%clk 0:57:39.2]} 9... O-O {[%clk 0:46:44.8]} 10. Rb1 {[%clk 0:57:09.5]} 10... d5 {[%clk 0:44:18.9]} 11. cxd5 {[%clk 0:53:39]} 11... Nxd5 {[%clk 0:44:11.8]} 12. Bd2 {[%clk 0:52:24]} 12... a6 {[%clk 0:41:16.6]} 13. Qc2 {[%clk 0:51:12.8]} 13... Qc7 {[%clk 0:40:32.6]} 14. Nxd5 {[%clk 0:48:54.6]} 14... Bxd5 {[%clk 0:40:21.7]} 15. Qxc5 {[%clk 0:48:36.3]} 15... Rfd8 {[%clk 0:39:20]} 16. Rbc1 {[%clk 0:47:09.7]} 16... e4 {[%clk 0:33:00.6]} 17. Nd4 {[%clk 0:44:12.8]} 17... b6 {[%clk 0:28:40.1]} 18. Qc3 {[%clk 0:42:43.8]} 18... Qb7 {[%clk 0:24:47.8]} 19. dxe4 {[%clk 0:42:03.2]} 19... Nxd4 {[%clk 0:24:40.1]} 20. exd4 {[%clk 0:39:53.9]} 20... Bxe4 {[%clk 0:24:08.7]} 21. Bxe4 {[%clk 0:37:17.1]} 21... Qxe4 {[%clk 0:24:09.4]} 22. Be3 {[%clk 0:34:45.7]} 22... b5 {[%clk 0:19:02.7]} 23. Rfd1 {[%clk 0:32:52.6]} 23... Rac8 {[%clk 0:18:17.1]} 24. Qxc8 {[%clk 0:32:14.5]} 24... Rxc8 {[%clk 0:18:12.7]} 25. Rxc8+ {[%clk 0:32:16.7]} 25... Bf8 {[%clk 0:18:16.8]} 26. Bh6 {[%clk 0:32:10.5]} 1-0